[Event "European Online Club-ch-H 2021"]
[Site "Online"]
[Date "2021.03.27"]
[Round "2.20"]
[White "Buhmann, Rainer"]
[Black "Baklan, Vladimir"]
[Result "1-0"]
[ECO "E14"]
[WhiteElo "2580"]
[BlackElo "2587"]
[Annotator "ChessBase"]
[PlyCount "149"]
[EventDate "2021.03.27"]
[EventType "team-tourn"]
[EventCountry "NET"]
[SourceTitle "playchess.com"]
[Source "ChessBase"]
[SourceQuality "1"]
[TimeControl "900+5"]

1. d4 {[%emt 0:00:00]} Nf6 {[%emt 0:00:03]} 2. Nf3 {[%emt 0:00:03]} e6 {[%emt 0:00:03]} 3. c4 {[%emt 0:00:01]} b6 {[%emt 0:00:02]} 4. e3 {[%emt 0:00:02]} Bb7 {[%emt 0:00:21]} 5. Bd3 {[%emt 0:00:02]} c5 {[%emt 0:00:04]} 6. O-O {[%emt 0:00:08]} g6 {[%emt 0:00:04]} 7. Nc3 {[%emt 0:00:21]} Bg7 {[%emt 0:00:05]} 8. d5 {[%emt 0:01:52]} exd5 {[%emt 0:00:04]} 9. cxd5 {[%emt 0:00:02]} Nxd5 {[%emt 0:00:04]} 10. Nb5 {[%emt 0:01:44]} O-O {[%emt 0:01:04]} 11. e4 {[%emt 0:00:58]} Nc7 {[%emt 0:00:37]} 12. Nd6 {[%emt 0:01:20]} Ba6 {[%emt 0:01:07]} 13. Bg5 {[%emt 0:00:24]} f6 {[%emt 0:00:04]} 14. Bxa6 {[%emt 0:00:43]} Nbxa6 {[%emt 0:00:04]} 15. Bh4 {[%emt 0:00:14]} Nb4 {[%emt 0:00:35]} 16. Re1 {[%emt 0:00:48]} Nc6 {[%emt 0:02:02]} 17. Qb3+ {[%emt 0:00:48]} Ne6 {[%emt 0:00:04]} 18. Rad1 {[%emt 0:00:11]} h6 {[%emt 0:01:13]} 19. Nf5 {[%emt 0:02:48]} Qe8 {[%emt 0:00:22]} 20. Nxg7 {[%emt 0:01:08]} Kxg7 {[%emt 0:00:07]} 21. Qd5 {[%emt 0:00:21]} Ned4 {[%emt 0:01:28]} 22. Nxd4 {[%emt 0:00:03]} cxd4 {[%emt 0:00:17]} 23. f4 {[%emt 0:00:05]} Qf7 {[%emt 0:00:20]} 24. Bf2 {[%emt 0:00:12]} Rac8 {[%emt 0:01:06]} 25. Kf1 {[%emt 0:00:51]} Rfe8 {[%emt 0:02:40]} 26. Qxf7+ {[%emt 0:00:10]} Kxf7 {[%emt 0:00:03]} 27. Bxd4 {[%emt 0:00:01]} Nxd4 {[%emt 0:00:08]} 28. Rxd4 {[%emt 0:00:01]} Re7 {[%emt 0:00:01]} 29. Re2 {[%emt 0:00:10]} Rc6 {[%emt 0:00:12]} 30. Kf2 {[%emt 0:00:08]} Ke8 {[%emt 0:00:29]} 31. Kf3 {[%emt 0:00:22]} Rc1 {[%emt 0:00:04]} 32. Ra4 {[%emt 0:00:18]} d5 {[%emt 0:00:32]} 33. exd5 {[%emt 0:00:38]} Rf1+ {[%emt 0:00:05]} 34. Rf2 {[%emt 0:00:02]} Rd1 {[%emt 0:00:01]} 35. Re2 {[%emt 0:00:13]} Rxd5 {[%emt 0:00:15]} 36. Rxe7+ {[%emt 0:00:03]} Kxe7 {[%emt 0:00:02]} 37. Rxa7+ {[%emt 0:00:01]} Ke6 {[%emt 0:00:11]} 38. Rb7 {[%emt 0:00:03]} Rb5 {[%emt 0:00:02]} 39. b3 {[%emt 0:00:04]} g5 {[%emt 0:00:04]} 40. Rc7 {[%emt 0:00:22]} gxf4 {[%emt 0:00:38]} 41. Kxf4 {[%emt 0:00:08]} Rf5+ {[%emt 0:00:05]} 42. Ke4 {[%emt 0:00:04]} Re5+ {[%emt 0:00:03]} 43. Kd3 {[%emt 0:00:03]} Kd6 {[%emt 0:00:03]} 44. Rh7 {[%emt 0:00:06]} h5 {[%emt 0:00:05]} 45. Rf7 {[%emt 0:00:12]} Rf5 {[%emt 0:00:06]} 46. a3 {[%emt 0:00:07]} Rf2 {[%emt 0:00:10]} 47. Ke3 {[%emt 0:00:04]} Rf5 {[%emt 0:00:30]} 48. g3 {[%emt 0:00:04]} Rf1 {[%emt 0:00:03]} 49. Ke2 {[%emt 0:00:02]} Rf5 {[%emt 0:00:03]} 50. h4 {[%emt 0:00:02]} b5 {[%emt 0:00:04]} 51. Ke3 {[%emt 0:00:04]} Rf1 {[%emt 0:00:08]} 52. Rh7 {[%emt 0:00:01]} Rb1 {[%emt 0:00:06]} 53. b4 {[%emt 0:00:05]} Re1+ {[%emt 0:00:16]} 54. Kf4 {[%emt 0:00:07]} Re5 {[%emt 0:00:02]} 55. Rf7 {[%emt 0:00:05]} Ke6 {[%emt 0:00:04]} 56. Rc7 {[%emt 0:00:02]} Re1 {[%emt 0:00:09]} 57. Rc5 {[%emt 0:00:04]} Rf1+ {[%emt 0:00:02]} 58. Ke4 {[%emt 0:00:03]} Re1+ {[%emt 0:00:02]} 59. Kf3 {[%emt 0:00:03]} Ra1 {[%emt 0:00:01]} 60. Rxh5 {[%emt 0:00:01]} f5 {[%emt 0:00:02]} 61. Kf4 {[%emt 0:00:07]} Rf1+ {[%emt 0:00:02]} 62. Ke3 {[%emt 0:00:04]} Ra1 {[%emt 0:00:01]} 63. Kd4 {[%emt 0:00:04]} Rxa3 {[%emt 0:00:02]} 64. Rg5 {[%emt 0:00:02]} Rf3 {[%emt 0:00:14]} 65. Kc5 {[%emt 0:00:03]} f4 {[%emt 0:00:01]} 66. gxf4 {[%emt 0:00:01]} Rxf4 {[%emt 0:00:01]} 67. h5 {[%emt 0:00:02]} Kd7 {[%emt 0:00:05]} 68. Kxb5 {[%emt 0:00:03]} Rh4 {[%emt 0:00:02]} 69. Rc5 {[%emt 0:00:02]} Kd6 {[%emt 0:00:04]} 70. Ka5 {[%emt 0:00:02]} Rh1 {[%emt 0:00:02]} 71. Kb6 {[%emt 0:00:03]} Rh4 {[%emt 0:00:05]} 72. b5 {[%emt 0:00:02]} Rh1 {[%emt 0:00:01]} 73. Rg5 {[%emt 0:00:03]} Rh4 {[%emt 0:00:02]} 74. Rg6+ {[%emt 0:00:02]} Kd7 {[%emt 0:00:02]} 75. h6 {[%emt 0:00:02]} 1-0

[Event "European Online Club-ch-H 2021"]
[Site "Online"]
[Date "2021.03.27"]
[Round "4.1"]
[White "Samani, Yamac"]
[Black "Sabuk, Piotr"]
[Result "1-0"]
[ECO "C26"]
[WhiteElo "2246"]
[BlackElo "2366"]
[Annotator "NA"]
[PlyCount "101"]
[EventDate "2021.03.27"]
[EventType "team-tourn"]
[EventCountry "NET"]
[SourceTitle "playchess.com"]
[Source "ChessBase"]
[SourceQuality "1"]
[TimeControl "900+5"]

1. e4 {[%emt 0:00:00]} e5 {[%emt 0:00:02]} 2. Nc3 {[%emt 0:00:04]} Nf6 {[%emt 0:00:03]} 3. g3 {[%emt 0:00:04]} Nc6 {[%emt 0:00:24]} 4. Bg2 {[%emt 0:00:02]} Bc5 {[%emt 0:00:02]} 5. Nf3 {[%emt 0:00:08]} d6 {[%emt 0:00:09]} 6. d3 {[%emt 0:00:06]} h6 {[%emt 0:00:07]} 7. Na4 {[%emt 0:00:08]} O-O {[%emt 0:00:18]} 8. O-O {[%emt 0:00:06]} Be6 {[%emt 0:00:18]} 9. c3 {[%emt 0:00:14]} Bb6 {[%emt 0:01:20]} 10. Re1 {[%emt 0:00:40]} Qd7 {[%emt 0:00:20]} 11. Nxb6 {[%emt 0:00:23]} axb6 {[%emt 0:00:02]} 12. a3 {[%emt 0:00:24]} Bh3 {[%emt 0:00:09]} 13. Bh1 {[%emt 0:00:07]} Rfe8 {[%emt 0:00:24]} 14. b4 {[%emt 0:00:52]} Bg4 {[%emt 0:00:32]} 15. Qc2 {[%emt 0:00:11]} b5 {[%emt 0:00:12]} 16. Bb2 {[%emt 0:00:21]} Rad8 {[%emt 0:02:23]} 17. a4 {[%emt 0:01:13]} bxa4 {[%emt 0:00:12]} 18. b5 {[%emt 0:00:42]} Ne7 {[%emt 0:00:27]} 19. c4 {[%emt 0:00:37]} b6 {[%emt 0:00:12]} 20. Rxa4 {[%emt 0:00:11]} Ng6 {[%emt 0:00:08]} 21. Rea1 {[%emt 0:00:17]} Qe6 {[%emt 0:00:21]} 22. Ra7 {[%emt 0:00:08]} Rc8 {[%emt 0:00:03]} 23. Nd2 {[%emt 0:00:49]} Nd7 {[%emt 0:00:07]} 24. Nf1 {[%emt 0:00:20]} Nc5 {[%emt 0:00:13]} 25. Ne3 {[%emt 0:00:14]} Ne7 {[%emt 0:00:02]} 26. f4 {[%emt 0:00:29]} f5 {[%emt 0:00:42]} 27. Nxg4 {[%emt 0:00:51]} fxg4 {[%emt 0:00:02]} 28. f5 {[%emt 0:00:24]} Qf6 {[%emt 0:00:37]} 29. Qd1 {[%emt 0:00:18]} h5 {[%emt 0:00:02]} 30. d4 {[%emt 0:00:27]} Nd7 {[%emt 0:00:15]} 31. Bg2 {[%emt 0:00:25]} g6 {[%emt 0:00:06]} 32. Qd2 {[%emt 0:00:49]} gxf5 {[%emt 0:00:13]} 33. Rf1 {[%emt 0:00:08]} Rf8 {[%emt 0:00:19]} 34. exf5 {[%emt 0:00:10]} Nxf5 {[%emt 0:00:04]} 35. Bd5+ {[%emt 0:00:18]} Kh8 {[%emt 0:00:08]} 36. Bc6 {[%emt 0:00:24]} Qe6 {[%emt 0:01:00]} 37. Bxd7 {[%emt 0:00:17]} Qxd7 {[%emt 0:00:01]} 38. dxe5 {[%emt 0:00:02]} Kh7 {[%emt 0:00:41]} 39. Qg5 {[%emt 0:00:14]} dxe5 {[%emt 0:00:40]} 40. Bxe5 {[%emt 0:00:48]} Rf7 {[%emt 0:00:35]} 41. Qxh5+ {[%emt 0:00:16]} Nh6 {[%emt 0:00:02]} 42. Rxf7+ {[%emt 0:00:10]} Qxf7 {[%emt 0:00:01]} 43. Qxf7+ {[%emt 0:00:02]} Nxf7 {[%emt 0:00:00]} 44. Rxc7 {[%emt 0:00:46]} Rf8 {[%emt 0:00:16]} 45. Bd6 {[%emt 0:00:11]} Rd8 {[%emt 0:00:02]} 46. Rxf7+ {[%emt 0:00:15]} Kg6 {[%emt 0:00:04]} 47. Rc7 {[%emt 0:00:04]} Rxd6 {[%emt 0:00:05]} 48. Rc6 {[%emt 0:00:01]} Rf6 {[%emt 0:00:04]} 49. c5 {[%emt 0:00:17]} bxc5 {[%emt 0:00:12]} 50. Rxf6+ {[%emt 0:00:03]} Kxf6 {[%emt 0:00:00]} 51. b6 {[%emt 0:00:01]} 1-0

[Event "European Online Club-ch-H 2021"]
[Site "Online"]
[Date "2021.03.27"]
[Round "4.2"]
[White "Valuet, Bertrand"]
[Black "Agdelen, Huseyin Can"]
[Result "1-0"]
[ECO "B84"]
[WhiteElo "2217"]
[BlackElo "2206"]
[Annotator "NA"]
[PlyCount "67"]
[EventDate "2021.03.27"]
[EventType "team-tourn"]
[EventCountry "NET"]
[SourceTitle "playchess.com"]
[Source "ChessBase"]
[SourceQuality "1"]
[TimeControl "900+5"]

1. e4 {[%emt 0:00:00]} c5 {[%emt 0:00:02]} 2. Nf3 {[%emt 0:00:03]} d6 {[%emt 0:00:02]} 3. d4 {[%emt 0:00:03]} cxd4 {[%emt 0:00:01]} 4. Nxd4 {[%emt 0:00:01]} Nf6 {[%emt 0:00:02]} 5. Nc3 {[%emt 0:00:02]} a6 {[%emt 0:00:01]} 6. Be3 {[%emt 0:00:04]} e6 {[%emt 0:00:31]} 7. Be2 {[%emt 0:00:10]} Qc7 {[%emt 0:00:04]} 8. g4 {[%emt 0:00:12]} b5 {[%emt 0:00:23]} 9. g5 {[%emt 0:00:59]} b4 {[%emt 0:00:06]} 10. Nd5 {[%emt 0:00:16]} Nxd5 {[%emt 0:00:35]} 11. exd5 {[%emt 0:00:03]} e5 {[%emt 0:00:01]} 12. Nb3 {[%emt 0:00:35]} Be7 {[%emt 0:01:34]} 13. a3 {[%emt 0:00:10]} Bf5 {[%emt 0:00:24]} 14. axb4 {[%emt 0:01:53]} Bxc2 {[%emt 0:00:44]} 15. Qc1 {[%emt 0:00:06]} Bd8 {[%emt 0:00:02]} 16. Nd2 {[%emt 0:00:40]} O-O {[%emt 0:00:55]} 17. O-O {[%emt 0:00:16]} f5 {[%emt 0:00:18]} 18. gxf6 {[%emt 0:00:27]} Rxf6 {[%emt 0:00:03]} 19. Ra3 {[%emt 0:00:24]} Bf5 {[%emt 0:01:42]} 20. Qxc7 {[%emt 0:00:15]} Bxc7 {[%emt 0:00:00]} 21. Rc1 {[%emt 0:00:06]} Bd8 {[%emt 0:00:14]} 22. b5 {[%emt 0:00:49]} a5 {[%emt 0:00:17]} 23. b6 {[%emt 0:00:28]} Bh3 {[%emt 0:01:04]} 24. Bf1 {[%emt 0:00:48]} Bxf1 {[%emt 0:04:24]} 25. Kxf1 {[%emt 0:00:05]} Nd7 {[%emt 0:00:51]} 26. b7 {[%emt 0:00:18]} Rb8 {[%emt 0:00:03]} 27. Rc8 {[%emt 0:00:03]} Rf8 {[%emt 0:00:06]} 28. Rxb8 {[%emt 0:00:17]} Nxb8 {[%emt 0:00:03]} 29. Rc3 {[%emt 0:00:09]} Rf7 {[%emt 0:00:39]} 30. Rc8 {[%emt 0:00:23]} Rxb7 {[%emt 0:00:03]} 31. Rxd8+ {[%emt 0:00:07]} Kf7 {[%emt 0:00:01]} 32. Nc4 {[%emt 0:00:43]} Rb4 {[%emt 0:00:13]} 33. Nxd6+ {[%emt 0:00:18]} Ke7 {[%emt 0:00:03]} 34. Bg5# {[%emt 0:00:04]} 1-0

[Event "European Online Club-ch-H 2021"]
[Site "Online"]
[Date "2021.03.27"]
[Round "4.3"]
[White "Sertbay, Huseyin"]
[Black "Appendino, Jerome"]
[Result "1/2-1/2"]
[ECO "D10"]
[WhiteElo "2101"]
[BlackElo "2175"]
[Annotator "NA"]
[PlyCount "167"]
[EventDate "2021.03.27"]
[EventType "team-tourn"]
[EventCountry "NET"]
[SourceTitle "playchess.com"]
[Source "ChessBase"]
[SourceQuality "1"]
[TimeControl "900+5"]

1. d4 {[%emt 0:00:00]} d5 {[%emt 0:00:07]} 2. c4 {[%emt 0:00:02]} c6 {[%emt 0:00:02]} 3. cxd5 {[%emt 0:00:01]} cxd5 {[%emt 0:00:02]} 4. Bg5 {[%emt 0:00:02]} Nc6 {[%emt 0:00:11]} 5. Nc3 {[%emt 0:00:02]} h6 {[%emt 0:00:44]} 6. Bh4 {[%emt 0:00:01]} g5 {[%emt 0:00:01]} 7. Bg3 {[%emt 0:00:02]} Bg7 {[%emt 0:00:01]} 8. e3 {[%emt 0:00:01]} Nf6 {[%emt 0:00:17]} 9. Bd3 {[%emt 0:00:09]} Qa5 {[%emt 0:01:14]} 10. Nge2 {[%emt 0:03:18]} a6 {[%emt 0:00:32]} 11. Nc1 {[%emt 0:01:13]} b5 {[%emt 0:04:51]} 12. Nb3 {[%emt 0:00:11]} Qb6 {[%emt 0:00:06]} 13. h4 {[%emt 0:00:05]} g4 {[%emt 0:00:26]} 14. h5 {[%emt 0:00:05]} O-O {[%emt 0:00:13]} 15. Rc1 {[%emt 0:00:53]} Na5 {[%emt 0:00:14]} 16. Bb1 {[%emt 0:00:52]} Nc4 {[%emt 0:01:11]} 17. Qc2 {[%emt 0:00:05]} Bb7 {[%emt 0:00:31]} 18. Nc5 {[%emt 0:00:09]} Rfc8 {[%emt 0:00:19]} 19. Bh4 {[%emt 0:01:41]} Ne4 {[%emt 0:01:08]} 20. Bxe7 {[%emt 0:03:07]} Re8 {[%emt 0:00:28]} 21. N5xe4 {[%emt 0:00:03]} dxe4 {[%emt 0:01:10]} 22. Bc5 {[%emt 0:00:03]} Qc7 {[%emt 0:00:36]} 23. Qe2 {[%emt 0:00:03]} f5 {[%emt 0:00:14]} 24. b3 {[%emt 0:00:37]} Ne5 {[%emt 0:00:29]} 25. Ba3 {[%emt 0:00:13]} Qa5 {[%emt 0:00:33]} 26. Bc5 {[%emt 0:00:40]} Nd3+ {[%emt 0:00:15]} 27. Bxd3 {[%emt 0:00:10]} exd3 {[%emt 0:00:01]} 28. Qxd3 {[%emt 0:00:01]} Bxg2 {[%emt 0:00:02]} 29. Rg1 {[%emt 0:00:31]} Be4 {[%emt 0:00:07]} 30. Qd2 {[%emt 0:00:09]} Bb7 {[%emt 0:00:52]} 31. Ne2 {[%emt 0:00:01]} Qd8 {[%emt 0:00:09]} 32. Nf4 {[%emt 0:00:04]} Rc8 {[%emt 0:00:13]} 33. b4 {[%emt 0:00:03]} Bf3 {[%emt 0:00:12]} 34. Kf1 {[%emt 0:00:08]} Qd7 {[%emt 0:00:04]} 35. Qd3 {[%emt 0:00:22]} Qf7 {[%emt 0:00:09]} 36. Qb3 {[%emt 0:00:04]} Qxb3 {[%emt 0:00:03]} 37. axb3 {[%emt 0:00:01]} Kf7 {[%emt 0:00:07]} 38. Ra1 {[%emt 0:00:02]} Rc6 {[%emt 0:00:02]} 39. Ke1 {[%emt 0:00:14]} Bf8 {[%emt 0:00:05]} 40. Kd2 {[%emt 0:00:04]} Bd6 {[%emt 0:00:01]} 41. Ng6 {[%emt 0:00:09]} Bd5 {[%emt 0:00:13]} 42. Bxd6 {[%emt 0:00:11]} Rxd6 {[%emt 0:00:02]} 43. Ne5+ {[%emt 0:00:02]} Kf6 {[%emt 0:00:05]} 44. Rgc1 {[%emt 0:00:04]} Bxb3 {[%emt 0:00:05]} 45. Ke1 {[%emt 0:00:12]} Bd5 {[%emt 0:00:09]} 46. Rc7 {[%emt 0:00:04]} Kg5 {[%emt 0:00:03]} 47. Rg7+ {[%emt 0:00:32]} Kxh5 {[%emt 0:00:08]} 48. Kd2 {[%emt 0:00:01]} Rxe5 {[%emt 0:00:08]} 49. dxe5 {[%emt 0:00:05]} Re6 {[%emt 0:00:01]} 50. f4 {[%emt 0:00:11]} Be4 {[%emt 0:00:08]} 51. Ra2 {[%emt 0:00:24]} Kh4 {[%emt 0:00:03]} 52. Ke2 {[%emt 0:00:14]} g3 {[%emt 0:00:06]} 53. Ra7 {[%emt 0:00:17]} g2 {[%emt 0:00:06]} 54. Kf2 {[%emt 0:00:02]} Rc6 {[%emt 0:00:01]} 55. R7xa6 {[%emt 0:00:07]} Rc1 {[%emt 0:00:02]} 56. Rxh6+ {[%emt 0:00:05]} Kg4 {[%emt 0:00:02]} 57. Rg6+ {[%emt 0:00:10]} Kh3 {[%emt 0:00:02]} 58. Ra7 {[%emt 0:00:36]} Rc2+ {[%emt 0:00:19]} 59. Ke1 {[%emt 0:00:02]} Kh2 {[%emt 0:00:02]} 60. Rh7+ {[%emt 0:00:08]} Kg1 {[%emt 0:00:02]} 61. Rhg7 {[%emt 0:00:03]} Bf3 {[%emt 0:00:03]} 62. e6 {[%emt 0:00:32]} Re2+ {[%emt 0:00:04]} 63. Kd1 {[%emt 0:00:01]} Rxe3+ {[%emt 0:00:00]} 64. Kd2 {[%emt 0:00:04]} Re2+ {[%emt 0:00:05]} 65. Kd3 {[%emt 0:00:03]} Kf1 {[%emt 0:00:06]} 66. e7 {[%emt 0:00:08]} Bg4 {[%emt 0:00:16]} 67. Rxg4 {[%emt 0:00:06]} fxg4 {[%emt 0:00:02]} 68. Rxg4 {[%emt 0:00:11]} Rxe7 {[%emt 0:00:01]} 69. f5 {[%emt 0:00:05]} g1=Q {[%emt 0:00:03]} 70. Rxg1+ {[%emt 0:00:02]} Kxg1 {[%emt 0:00:01]} 71. Kd4 {[%emt 0:00:01]} Kf2 {[%emt 0:00:04]} 72. f6 {[%emt 0:00:01]} Re6 {[%emt 0:00:04]} 73. Kc5 {[%emt 0:00:15]} Rxf6 {[%emt 0:00:06]} 74. Kxb5 {[%emt 0:00:01]} Ke3 {[%emt 0:00:01]} 75. Kc5 {[%emt 0:00:01]} Ke4 {[%emt 0:00:05]} 76. b5 {[%emt 0:00:01]} Ke5 {[%emt 0:00:18]} 77. b6 {[%emt 0:00:02]} Rf1 {[%emt 0:00:03]} 78. b7 {[%emt 0:00:06]} Rb1 {[%emt 0:00:02]} 79. Kc6 {[%emt 0:00:02]} Ke6 {[%emt 0:00:02]} 80. Kc7 {[%emt 0:00:05]} Rc1+ {[%emt 0:00:02]} 81. Kd8 {[%emt 0:00:11]} Rb1 {[%emt 0:00:03]} 82. Kc8 {[%emt 0:00:03]} Kd6 {[%emt 0:00:03]} 83. b8=Q+ {[%emt 0:00:03]} Rxb8+ {[%emt 0:00:01]} 84. Kxb8 {[%emt 0:00:01]} 1/2-1/2

[Event "European Online Club-ch-H 2021"]
[Site "Online"]
[Date "2021.03.27"]
[Round "4.4"]
[White "Ould Ahmed, Samy"]
[Black "Atasoy, Ata"]
[Result "1/2-1/2"]
[ECO "B84"]
[WhiteElo "2110"]
[BlackElo "1636"]
[Annotator "NA"]
[PlyCount "133"]
[EventDate "2021.03.27"]
[EventType "team-tourn"]
[EventCountry "NET"]
[SourceTitle "playchess.com"]
[Source "ChessBase"]
[SourceQuality "1"]
[TimeControl "900+5"]

1. e4 {[%emt 0:00:00]} c5 {[%emt 0:00:02]} 2. Nf3 {[%emt 0:00:03]} e6 {[%emt 0:00:02]} 3. d4 {[%emt 0:00:00]} cxd4 {[%emt 0:00:00]} 4. Nxd4 {[%emt 0:00:01]} a6 {[%emt 0:00:01]} 5. Nc3 {[%emt 0:00:02]} Qc7 {[%emt 0:00:05]} 6. Be2 {[%emt 0:00:01]} Nf6 {[%emt 0:00:06]} 7. O-O {[%emt 0:00:03]} Be7 {[%emt 0:00:03]} 8. f4 {[%emt 0:00:08]} d6 {[%emt 0:00:04]} 9. Be3 {[%emt 0:00:02]} O-O {[%emt 0:00:03]} 10. a4 {[%emt 0:00:01]} b6 {[%emt 0:00:07]} 11. Bd3 {[%emt 0:01:48]} Bb7 {[%emt 0:00:12]} 12. g4 {[%emt 0:00:12]} g6 {[%emt 0:00:56]} 13. g5 {[%emt 0:00:39]} Nfd7 {[%emt 0:00:03]} 14. f5 {[%emt 0:02:50]} e5 {[%emt 0:01:11]} 15. Nde2 {[%emt 0:00:48]} Re8 {[%emt 0:00:19]} 16. Ng3 {[%emt 0:00:14]} Nc5 {[%emt 0:00:21]} 17. Qf3 {[%emt 0:00:08]} Bf8 {[%emt 0:00:21]} 18. Bc4 {[%emt 0:01:17]} Re7 {[%emt 0:00:57]} 19. fxg6 {[%emt 0:00:22]} hxg6 {[%emt 0:00:03]} 20. Nd5 {[%emt 0:00:53]} Bxd5 {[%emt 0:00:11]} 21. Bxd5 {[%emt 0:00:01]} Nc6 {[%emt 0:00:51]} 22. h4 {[%emt 0:01:16]} Rd8 {[%emt 0:01:33]} 23. h5 {[%emt 0:00:05]} Nb4 {[%emt 0:00:21]} 24. hxg6 {[%emt 0:00:18]} Nxd5 {[%emt 0:00:02]} 25. exd5 {[%emt 0:00:51]} fxg6 {[%emt 0:00:03]} 26. Bxc5 {[%emt 0:01:21]} Qxc5+ {[%emt 0:00:59]} 27. Rf2 {[%emt 0:00:03]} Bg7 {[%emt 0:00:30]} 28. Ne4 {[%emt 0:00:01]} Qc8 {[%emt 0:01:55]} 29. Nf6+ {[%emt 0:01:04]} Bxf6 {[%emt 0:00:42]} 30. gxf6 {[%emt 0:00:03]} Rh7 {[%emt 0:00:48]} 31. f7+ {[%emt 0:00:30]} Kf8 {[%emt 0:00:03]} 32. Qf6 {[%emt 0:01:49]} Qg4+ {[%emt 0:01:33]} 33. Rg2 {[%emt 0:00:03]} Qd4+ {[%emt 0:00:06]} 34. Rf2 {[%emt 0:00:18]} Qg4+ {[%emt 0:00:35]} 35. Rg2 {[%emt 0:00:02]} Qd4+ {[%emt 0:00:21]} 36. Rf2 {[%emt 0:00:09]} Rd7 {[%emt 0:02:04]} 37. c3 {[%emt 0:00:27]} Qh4 {[%emt 0:00:23]} 38. Qxh4 {[%emt 0:00:05]} Rxh4 {[%emt 0:00:00]} 39. Raf1 {[%emt 0:00:04]} Rxa4 {[%emt 0:00:07]} 40. Rf6 {[%emt 0:00:01]} Rg4+ {[%emt 0:00:06]} 41. Kh2 {[%emt 0:00:05]} Rf4 {[%emt 0:00:09]} 42. R1xf4 {[%emt 0:00:09]} exf4 {[%emt 0:00:00]} 43. Rxg6 {[%emt 0:00:02]} Kxf7 {[%emt 0:00:02]} 44. Rh6 {[%emt 0:00:02]} Ke7 {[%emt 0:00:13]} 45. Re6+ {[%emt 0:00:02]} Kf7 {[%emt 0:00:02]} 46. Kg2 {[%emt 0:00:01]} Re7 {[%emt 0:00:06]} 47. Rxd6 {[%emt 0:00:02]} Re2+ {[%emt 0:00:02]} 48. Kf3 {[%emt 0:00:01]} Rxb2 {[%emt 0:00:01]} 49. Rc6 {[%emt 0:00:06]} a5 {[%emt 0:00:07]} 50. Kxf4 {[%emt 0:00:02]} a4 {[%emt 0:00:01]} 51. Ke5 {[%emt 0:00:03]} a3 {[%emt 0:00:02]} 52. Rc7+ {[%emt 0:00:02]} Ke8 {[%emt 0:00:04]} 53. Ke6 {[%emt 0:00:14]} Kd8 {[%emt 0:00:15]} 54. Ra7 {[%emt 0:00:02]} a2 {[%emt 0:00:05]} 55. Kd6 {[%emt 0:00:01]} Kc8 {[%emt 0:00:05]} 56. c4 {[%emt 0:00:02]} Kb8 {[%emt 0:00:08]} 57. Ra6 {[%emt 0:00:01]} Kb7 {[%emt 0:00:01]} 58. Ra3 {[%emt 0:00:02]} Rc2 {[%emt 0:00:09]} 59. Ra4 {[%emt 0:00:04]} a1=Q {[%emt 0:00:06]} 60. Rxa1 {[%emt 0:00:02]} Rxc4 {[%emt 0:00:01]} 61. Rh1 {[%emt 0:00:01]} Rc7 {[%emt 0:00:05]} 62. Re1 {[%emt 0:00:04]} Rc1 {[%emt 0:00:07]} 63. Re7+ {[%emt 0:00:02]} Kc8 {[%emt 0:00:02]} 64. Re8+ {[%emt 0:00:06]} Kb7 {[%emt 0:00:03]} 65. Re7+ {[%emt 0:00:09]} Kc8 {[%emt 0:00:03]} 66. Re8+ {[%emt 0:00:11]} Kb7 {[%emt 0:00:02]} 67. Re7+ {[%emt 0:00:06]} 1/2-1/2

[Event "European Online Club-ch-H 2021"]
[Site "Online"]
[Date "2021.03.27"]
[Round "4.5"]
[White "Manik, Mikulas"]
[Black "Vasli, Aref"]
[Result "1-0"]
[ECO "C88"]
[WhiteElo "2353"]
[BlackElo "2384"]
[Annotator "NA"]
[PlyCount "51"]
[EventDate "2021.03.27"]
[EventType "team-tourn"]
[EventCountry "NET"]
[SourceTitle "playchess.com"]
[Source "ChessBase"]
[SourceQuality "1"]
[TimeControl "900+5"]

1. e4 {[%emt 0:00:00]} e5 {[%emt 0:00:02]} 2. Nf3 {[%emt 0:00:02]} Nc6 {[%emt 0:00:01]} 3. Bb5 {[%emt 0:00:02]} a6 {[%emt 0:00:02]} 4. Ba4 {[%emt 0:00:01]} Nf6 {[%emt 0:00:01]} 5. O-O {[%emt 0:00:02]} Be7 {[%emt 0:00:01]} 6. d3 {[%emt 0:00:02]} b5 {[%emt 0:00:03]} 7. Bb3 {[%emt 0:00:02]} d6 {[%emt 0:00:01]} 8. a4 {[%emt 0:00:02]} b4 {[%emt 0:00:02]} 9. Nbd2 {[%emt 0:00:03]} O-O {[%emt 0:00:09]} 10. Re1 {[%emt 0:00:05]} h6 {[%emt 0:00:02]} 11. h3 {[%emt 0:00:27]} Rb8 {[%emt 0:00:07]} 12. a5 {[%emt 0:00:27]} Be6 {[%emt 0:00:12]} 13. Nc4 {[%emt 0:00:10]} Qc8 {[%emt 0:00:05]} 14. Bd2 {[%emt 0:00:20]} Rd8 {[%emt 0:00:16]} 15. Ne3 {[%emt 0:01:07]} d5 {[%emt 0:00:25]} 16. exd5 {[%emt 0:01:53]} Nxd5 {[%emt 0:00:03]} 17. Ba4 {[%emt 0:00:09]} Nxa5 {[%emt 0:00:36]} 18. Nxe5 {[%emt 0:00:05]} Bf6 {[%emt 0:00:01]} 19. N3g4 {[%emt 0:01:20]} Bg5 {[%emt 0:02:11]} 20. Bxg5 {[%emt 0:02:26]} hxg5 {[%emt 0:00:04]} 21. Bc6 {[%emt 0:00:11]} Nxc6 {[%emt 0:01:51]} 22. Nxc6 {[%emt 0:00:04]} Qb7 {[%emt 0:00:06]} 23. Nxb8 {[%emt 0:01:15]} Rxb8 {[%emt 0:00:08]} 24. Qf3 {[%emt 0:00:06]} Qb6 {[%emt 0:00:32]} 25. Re5 {[%emt 0:00:46]} f6 {[%emt 0:00:19]} 26. Rxd5 {[%emt 0:00:06]} 1-0